fUSD/lending_fUSD_20240428
["ID","MTS","AMOUNT","RATE_DAILY","PERIOD"]
[4907,1714327857352,-596.29,0.00010958,2]
[4909,1714327857381,-1435.2,0.00010958,2]
[4911,1714327857408,-1065.58,0.00010958,2]
[4913,1714327857435,-1989.31,0.00010958,2]
[4915,1714327857462,-500.0,0.00010958,2]
[4917,1714327857489,-14603.79,0.00010958,2]
[4918,1714327857504,-500.0,0.00010958,2]
[4919,1714327857517,-500.0,0.00010958,2]
[4920,1714327857532,-500.0,0.00010958,2]
[4921,1714327857545,-501.13235354,0.00010958,2]
[4923,1714327857572,-500.0,0.00010958,2]
[4925,1714327857599,-1554.38,0.00010958,2]
[4927,1714327857627,-4628.19,0.00010958,2]
[4928,1714327857641,-1003.44,0.00010958,2]
[4929,1714327857654,-500.0,0.00010958,2]
[4930,1714327857667,-2391.0,0.00010958,2]
[4931,1714327857680,-992.68,0.00010958,2]
[4932,1714327857694,-500.0,0.00010958,2]
[4933,1714327857712,-500.0,0.00010958,2]
[4934,1714327857726,-943.28,0.00010958,2]
[4935,1714327857739,-2685.78,0.00010958,2]
[4936,1714327857751,-504.95385244,0.00010958,2]
[4937,1714327857765,-500.0,0.00010958,2]
[4938,1714327857779,-6676.64,0.00010958,2]
[4939,1714327857794,-2550.66,0.00010958,2]
[4940,1714327857809,-500.0,0.00010958,2]
[4941,1714327857823,-2550.66,0.00010958,2]
[4942,1714327857836,-2550.66,0.00010958,2]
[4943,1714327857850,-2550.66,0.00010958,2]
[4944,1714327857863,-2550.66,0.00010958,2]
[4945,1714327857878,-2550.66,0.00010958,2]
[4946,1714327857892,-2550.66,0.00010958,2]
[4947,1714327857908,-553.68,0.00010958,2]
[4948,1714327857922,-2550.66,0.00010958,2]
[4949,1714327857937,-2550.66,0.00010958,2]
[4950,1714327857951,-500.0,0.00010958,2]
[4951,1714327857964,-2550.66,0.00010958,2]
[4952,1714327857977,-2550.66,0.00010958,2]
[4953,1714327857991,-2550.66,0.00010958,2]
[4954,1714327858004,-500.0,0.00010958,2]
[4955,1714327858017,-1187.31,0.00010958,2]
[4956,1714327858030,-2550.66,0.00010958,2]
[4957,1714327858044,-2550.66,0.00010958,2]
[4959,1714327858069,-2550.66,0.00010958,2]
[4961,1714327858095,-500.0,0.00010958,2]
[4962,1714327858108,-500.0,0.00010958,2]
[4963,1714327858122,-7588.89,0.00010958,2]
[4965,1714327858149,-500.0,0.00010958,2]
[4966,1714327858164,-500.0,0.00010958,2]
[4967,1714327858177,-10456.85,0.00010958,2]
[4969,1714327858204,-2871.06,0.00010958,2]
[4971,1714327858231,-1118.21,0.00010958,2]
[4973,1714327858259,-3376.14,0.00010958,2]
[4975,1714327858286,-500.0,0.00010958,2]
[4977,1714327858312,-500.0,0.00010958,2]
[4979,1714327858343,-2580.05,0.00010958,2]
[4981,1714327858369,-2580.05,0.00010958,2]
[4983,1714327858396,-2580.05,0.00010958,2]
[4985,1714327858423,-688.63,0.00010958,2]
[4987,1714327858449,-2550.66,0.00010958,2]
[4989,1714327858475,-2550.66,0.00010958,2]
[4991,1714327858500,-2580.05,0.00010958,2]
[4993,1714327858526,-2580.05,0.00010958,2]
[4995,1714327858552,-543.95050876,0.00010958,2]
[4997,1714327858577,-2580.05,0.00010958,2]
[4999,1714327858603,-2580.05,0.00010958,2]
[5001,1714327858629,-2869.47,0.00010958,2]
[5003,1714327858655,-2580.05,0.00010958,2]
[5005,1714327858682,-2580.05,0.00010958,2]
[5007,1714327858708,-2580.05,0.00010958,2]
[5009,1714327858734,-2580.05,0.00010958,2]
[5011,1714327858761,-501.32729579,0.00010958,2]
[5013,1714327858787,-1432.5,0.00010958,2]
[5015,1714327858813,-2580.05,0.00010958,2]
[5017,1714327858839,-2580.05,0.00010958,2]
[5019,1714327858866,-2580.05,0.00010958,2]
[5021,1714327858892,-2580.12179053,0.00010958,2]
[5023,1714327858918,-727.82,0.00010958,2]
[5025,1714327858944,-500.0,0.00010958,2]
[5027,1714327858969,-437.20544303,0.00010958,2]
[5029,1714327858996,-839.45,0.00010958,2]
[5030,1714327859009,-3999.41,0.00010958,2]
[5031,1714327859022,-43270.69,0.00010958,2]
[5032,1714327859035,-500.47,0.00010958,2]
[5033,1714327859046,-500.0,0.00010958,2]
[5035,1714327859064,-500.0,0.00010958,2]
[5037,1714327859083,-4906.24,0.00010958,2]
[5039,1714327859433,-500.0,0.00010958,2]
[5041,1714327859456,-761.81,0.00010958,2]
[5043,1714327859477,-500.0,0.00010958,2]
[5045,1714327859495,-6529.31,0.00010958,2]
[5047,1714327859515,-7136.72,0.00010958,2]
[5049,1714327859534,-194.01865439,0.00010958,2]
[5051,1714327859552,-500.0,0.00010958,2]
[5052,1714327859561,-500.0,0.00010958,2]
[5053,1714327859570,-500.0,0.00010958,2]
[5054,1714327859579,-500.0,0.00010958,2]
[5055,1714327859588,-569.86,0.00010958,2]
[5056,1714327859598,-500.0,0.00010958,2]
[5057,1714327859607,-500.0,0.00010958,2]
[5058,1714327859616,-500.0,0.00010958,2]
[5059,1714327859625,-500.0,0.00010958,2]
[5060,1714327859635,-538.72769407,0.00010958,2]
[5061,1714327859644,-500.0,0.00010958,2]
[5062,1714327859653,-500.0,0.00010958,2]
[5063,1714327859662,-500.0,0.00010958,2]
[5064,1714327859672,-2308.51,0.00010958,2]
[5065,1714327859681,-1102.33,0.00010958,2]
[5067,1714327859699,-500.0,0.00010958,2]
[5069,1714327859719,-500.0,0.00010958,2]
[5071,1714327859737,-500.0,0.00010958,2]
[5072,1714327859746,-500.0,0.00010958,2]
[5073,1714327859756,-500.0,0.00010958,2]
[5075,1714327859775,-500.0,0.00010958,2]
[5077,1714327859793,-10142.44,0.00010958,2]
[5079,1714327859811,-510.98471188,0.00010958,2]
[5081,1714327859830,-500.0,0.00010958,2]
[5083,1714327859848,-500.0,0.00010958,2]
[5085,1714327859867,-500.0,0.00010958,2]
[5087,1714327859886,-2500.48,0.00010958,2]
[5089,1714327859905,-500.0,0.00010958,2]
[5091,1714327859924,-500.0,0.00010958,2]
[5093,1714327859943,-1022.43,0.00010958,2]
[5095,1714327859961,-500.0,0.00010958,2]
[5097,1714327859980,-3084.4,0.00010958,2]
[5099,1714327859999,-502.22967704,0.00010958,2]
[5101,1714327860019,-500.0,0.00010958,2]
[5103,1714327860038,-500.0,0.00010958,2]
[5105,1714327860056,-549.87,0.00010958,2]
[5107,1714327860074,-500.0,0.00010958,2]
[5109,1714327860092,-500.0,0.00010958,2]
[5111,1714327860112,-500.0,0.00010958,2]
[5113,1714327860130,-1000.0,0.00010959,2]
[5115,1714327860148,-151.0,0.00010959,2]
[5117,1714327860167,-151.0,0.00010959,2]
[5119,1714327860185,-151.0,0.00010959,2]
[5121,1714327860203,-151.0,0.00010959,2]
[5123,1714327860222,-151.0,0.00010959,2]
[5125,1714327860240,-151.0,0.00010959,2]
[5127,1714327860259,-151.0,0.00010959,2]
[5129,1714327860278,-151.0,0.00010959,2]
[5131,1714327860296,-151.0,0.00010959,2]
[5133,1714327860315,-287.587186,0.00010959,2]
[5135,1714327860338,-155.259755,0.00010959,2]
[5137,1714327860356,-154.853276,0.00010959,2]
[5139,1714327860376,-158.492253,0.00010959,2]
[5141,1714327860394,-258.477555,0.00010959,2]
[5143,1714327860415,-150.0,0.00010959,2]
[5145,1714327860434,-239.710067,0.00010959,2]
[5147,1714327860452,-199.787642,0.00010959,2]
[5149,1714327860471,-154.366851,0.00010959,2]
[5151,1714327860489,-152.621048,0.00010959,2]
[5153,1714327860507,-151.0,0.00010959,2]
[5155,1714327860525,-154.959948,0.00010959,2]
[5157,1714327860544,-151.0,0.00010959,2]
[5159,1714327860562,-151.0,0.00010959,2]
[5161,1714327860580,-164.745191,0.00010959,2]
[5163,1714327860598,-151.0,0.00010959,2]
[5165,1714327860616,-151.0,0.00010959,2]
[5167,1714327860635,-152.082779,0.00010959,2]
[5169,1714327860653,-151.803411,0.00010959,2]
[5171,1714327860674,-151.0,0.00010959,2]
[5173,1714327860693,-151.0,0.00010959,2]
[5175,1714327860712,-151.0,0.00010959,2]
[5177,1714327860731,-151.0,0.00010959,2]
[5179,1714327860751,-151.0,0.00010959,2]
[5181,1714327860770,-165.59,0.0001096,2]
[5182,1714327860779,-165.59,0.0001096,2]
[5183,1714327860788,-165.59,0.0001096,2]
[5185,1714327860805,-165.59,0.0001096,2]
[5187,1714327860824,-165.59,0.0001096,2]
[5189,1714327860843,-165.59,0.0001096,2]
[5190,1714327860852,-26290.17116213,0.00011,2]
[5191,1714327860861,-950.35966902,0.00011,2]
[5192,1714327860871,-458.02599467,0.00011,2]
[5193,1714327860879,-200.0,0.00011,2]
[5194,1714327860889,-4543.55986128,0.00011,2]
[5195,1714327860898,-560.70604314,0.00011,2]
[5196,1714327860907,-560.70604314,0.00011,2]
[5197,1714327860917,-560.70604314,0.00011,2]
[5199,1714327860936,-3835.9448898,0.00011224,2]
[5200,1714327860945,-8804.7838333,0.00011224,2]
[5201,1714327860954,-500.0,0.00011232,2]
[5202,1714327860963,-500.0,0.00011232,2]
[5203,1714327860971,-500.0,0.00011232,2]
[5205,1714327860989,-500.0,0.00011232,2]
[5207,1714327861007,-500.0,0.00011232,2]
[5208,1714327861016,-500.0,0.00011232,2]
[5209,1714327861025,-500.0,0.00011232,2]
[5210,1714327861034,-283.53816272,0.00011232,2]
[5211,1714327861043,-503.01218341,0.00011232,2]
[5213,1714327861061,-505.6843271,0.00011232,2]
[5214,1714327861070,-500.0,0.00011232,2]
[5215,1714327861079,-500.0,0.00011232,2]
[5217,1714327861096,-503.23332397,0.00011232,2]
[5219,1714327861115,-500.0,0.00011232,2]
[5221,1714327861134,-503.88825261,0.00011232,2]
[5223,1714327861152,-487.64284177,0.00011232,2]
[5225,1714327861170,-500.0,0.00011232,2]
[5227,1714327861190,-500.0,0.00011232,2]
[5229,1714327861208,-500.0,0.00011232,2]
[5231,1714327861227,-500.0,0.00011232,2]
[5233,1714327861246,-506.65,0.00011232,2]
[5235,1714327861265,-1913.25,0.00011232,2]
[5237,1714327861284,-500.0,0.00011232,2]
[5239,1714327861302,-524.32,0.00011232,2]
[5241,1714327861321,-500.0,0.00011232,2]
[5243,1714327861347,-516.69442546,0.00011232,2]
[5245,1714327861365,-500.0,0.00011232,2]
[5247,1714327861384,-620.38,0.00011232,2]
[5249,1714327861402,-500.0,0.00011232,2]
[5251,1714327861423,-538.92,0.00011232,2]
[5253,1714327861441,-500.0,0.00011232,2]
[5255,1714327861460,-500.0,0.00011232,2]
[5257,1714327861478,-658.28,0.00011232,2]
[5259,1714327861496,-895.1,0.00011232,2]
[5261,1714327861517,-500.0,0.00011232,2]
[5263,1714327861536,-500.0,0.00011232,2]
[5265,1714327861556,-507.11218332,0.00011232,2]
[5267,1714327861575,-500.0,0.00011232,2]
[5269,1714327861593,-500.0,0.00011232,2]
[5271,1714327861612,-500.0,0.00011232,2]
[5273,1714327861631,-825.87,0.00011232,2]
[5275,1714327861649,-500.0,0.00011232,2]
[5277,1714327861668,-500.0,0.00011232,2]
[5279,1714327861686,-500.0,0.00011232,2]
[5281,1714327861704,-1318.03,0.00011232,2]
[5282,1714327861713,-500.0,0.00011232,2]
[5283,1714327861722,-500.0,0.00011232,2]
[5285,1714327861740,-515.14,0.00011232,2]
[5287,1714327861758,-566.22,0.00011232,2]
[5289,1714327861776,-1561.83,0.00011232,2]
[5291,1714327861794,-502.51507852,0.00011232,2]
[5292,1714327861803,-1227.32,0.00011232,2]
[5293,1714327861813,-500.0,0.00011232,2]
[5294,1714327861823,-500.0,0.00011232,2]
[5295,1714327861832,-1431.64,0.00011232,2]
[5296,1714327861841,-500.0,0.00011232,2]
[5297,1714327861851,-500.0,0.00011232,2]
[5299,1714327861870,-500.0,0.00011232,2]
[5301,1714327861889,-596.77,0.00011232,2]
[5303,1714327861908,-500.0,0.00011232,2]
[5305,1714327861928,-551.25,0.00011232,2]
[5307,1714327861947,-500.0,0.00011232,2]
[5309,1714327861966,-500.0,0.00011232,2]
[5311,1714327861985,-187.4485406,0.00011232,2]
[5313,1714327862005,-500.0,0.00011232,2]
[5315,1714327862026,-500.0,0.00011232,2]
[5317,1714327862044,-1366.8,0.00011232,2]
[5318,1714327862054,-500.0,0.00011232,2]
[5319,1714327862064,-500.0,0.00011232,2]
[5320,1714327862074,-500.0,0.00011232,2]
[5321,1714327862083,-500.0,0.00011232,2]
[5322,1714327862093,-500.0,0.00011232,2]
[5323,1714327862103,-500.0,0.00011232,2]
[5325,1714327862122,-506.32517061,0.00011232,2]
[5327,1714327862141,-2601.22,0.00011232,2]
[5328,1714327862151,-500.0,0.00011232,2]
[5329,1714327862160,-500.0,0.00011232,2]
[5330,1714327862170,-500.0,0.00011232,2]
[5331,1714327862179,-584.86,0.00011232,2]
[5333,1714327862199,-500.03,0.00011232,2]
[5335,1714327862218,-500.0,0.00011232,2]
[5337,1714327862236,-500.0,0.00011232,2]
[5339,1714327862256,-500.0,0.00011232,2]
[5341,1714327862276,-551.93,0.00011232,2]
[5343,1714327862295,-500.0,0.00011232,2]
[5345,1714327862315,-878.68,0.00011232,2]
[5347,1714327862338,-500.0,0.00011232,2]
[5349,1714327862357,-500.0,0.00011232,2]
[5350,1714327862366,-500.0,0.00011232,2]
[5351,1714327862376,-500.0,0.00011232,2]
[5352,1714327862386,-500.0,0.00011232,2]
[5353,1714327862396,-500.0,0.00011232,2]
[5354,1714327862405,-1003.16,0.00011232,2]
[5355,1714327862415,-212.96322211,0.00011232,2]
[5357,1714327862434,-500.0,0.00011232,2]
[5358,1714327862443,-1071.7,0.00011232,2]
[5359,1714327862626,-574.37,0.00011232,2]
[5360,1714327862648,-500.0,0.00011232,2]
[5361,1714327862659,-500.0,0.00011232,2]
[5363,1714327862679,-500.0,0.00011232,2]
[5364,1714327862688,-500.0,0.00011232,2]
[5365,1714327862698,-825.25,0.00011232,2]
[5366,1714327862707,-500.0,0.00011232,2]
[5367,1714327862716,-500.0,0.00011232,2]
[5369,1714327862735,-500.0,0.00011232,2]
[5371,1714327862753,-500.0,0.00011232,2]
[5373,1714327862773,-500.0,0.00011232,2]
[5375,1714327862791,-1083.93,0.00011232,2]
[5377,1714327862809,-500.0,0.00011232,2]
[5379,1714327862828,-1452.61,0.00011232,2]
[5381,1714327862847,-1374.95,0.00011232,2]
[5383,1714327862867,-500.0,0.00011232,2]
[5385,1714327862886,-535.46,0.00011232,2]
[5387,1714327862904,-500.0,0.00011232,2]
[5389,1714327862923,-500.0,0.00011232,2]
[5390,1714327862932,-500.0,0.00011232,2]
[5391,1714327862941,-500.0,0.00011232,2]
[5393,1714327862959,-500.0,0.00011232,2]
[5395,1714327862978,-500.0,0.00011232,2]
[5397,1714327862997,-961.49,0.00011232,2]
[5399,1714327863015,-621.25,0.00011232,2]
[5401,1714327863034,-500.0,0.00011232,2]
[5403,1714327863052,-984.45,0.00011232,2]
[5405,1714327863071,-500.0,0.00011232,2]
[5407,1714327863091,-500.0,0.00011232,2]
[5409,1714327863110,-643.01,0.00011232,2]
[5411,1714327863129,-500.0,0.00011232,2]
[5412,1714327863138,-500.0,0.00011232,2]
[5413,1714327863148,-500.0,0.00011232,2]
[5415,1714327863167,-500.0,0.00011232,2]
[5419,1714327863196,-537.6,0.00011232,2]
[5421,1714327863215,-524.24,0.00011232,2]
[5423,1714327863236,-796.96,0.00011232,2]
[5425,1714327863255,-1464.99,0.00011232,2]
[5427,1714327863276,-500.0,0.00011232,2]
[5429,1714327863294,-500.0,0.00011232,2]
[5431,1714327863313,-500.0,0.00011232,2]
[5433,1714327863337,-500.0,0.00011232,2]
[5435,1714327863356,-500.0,0.00011232,2]
[5437,1714327863376,-500.0,0.00011232,2]
[5438,1714327863386,-1189.44,0.00011232,2]
[5439,1714327863395,-1439.92,0.00011232,2]
[5440,1714327863405,-500.0,0.00011232,2]
[5441,1714327863415,-501.91114794,0.00011232,2]
[5443,1714327863435,-1897.13,0.00011232,2]
[5445,1714327863453,-500.0,0.00011232,2]
[5447,1714327863471,-652.39,0.00011232,2]
[5448,1714327863481,-500.0,0.00011232,2]
[5449,1714327863491,-500.0,0.00011232,2]
[5450,1714327863501,-500.0,0.00011232,2]
[5451,1714327863510,-500.0,0.00011232,2]
[5453,1714327863530,-500.0,0.00011232,2]
[5454,1714327863540,-500.0,0.00011232,2]
[5455,1714327863549,-500.0,0.00011232,2]
[5457,1714327863568,-500.0,0.00011232,2]
[5459,1714327863587,-2448.4,0.00011232,2]
[5461,1714327863606,-500.0,0.00011232,2]
[5463,1714327863625,-397.02,0.00011232,2]
[5465,1714327863645,-500.0,0.00011232,2]
[5467,1714327863664,-500.0,0.00011232,2]
[5469,1714327863683,-1319.4,0.00011232,2]
[5471,1714327863704,-1798.47,0.00011232,2]
[5473,1714327863729,-500.0,0.00011232,2]
[5475,1714327863749,-500.0,0.00011232,2]
[5477,1714327863769,-500.0,0.00011232,2]
[5479,1714327863787,-500.0,0.00011232,2]
[5481,1714327863806,-584.91,0.00011232,2]
[5483,1714327863825,-869.51,0.00011232,2]
[5485,1714327863844,-500.0,0.00011232,2]
[5486,1714327863853,-849.06,0.00011232,2]
[5487,1714327863862,-500.0,0.00011232,2]
[5488,1714327863871,-500.0,0.00011232,2]
[5489,1714327863880,-500.0,0.00011232,2]
[5491,1714327863899,-500.0,0.00011232,2]
[5493,1714327863917,-500.0,0.00011232,2]
[5494,1714327863927,-500.0,0.00011232,2]
[5495,1714327863936,-500.0,0.00011232,2]
[5497,1714327863954,-500.0,0.00011232,2]
[5499,1714327863973,-2005.3,0.00011232,2]
[5501,1714327863992,-678.75,0.00011232,2]
[5503,1714327864010,-500.0,0.00011232,2]
[5505,1714327864028,-558.96,0.00011232,2]
[5507,1714327864046,-905.49,0.00011232,2]
[5509,1714327864066,-500.0,0.00011232,2]
[5511,1714327864085,-1355.48,0.00011232,2]
[5513,1714327864104,-215.71410786,0.00011232,2]
[5515,1714327864122,-500.0,0.00011232,2]
[5517,1714327864140,-500.0,0.00011232,2]
[5518,1714327864150,-1336.96,0.00011232,2]
[5519,1714327864159,-500.0,0.00011232,2]
[5520,1714327864168,-582.07,0.00011232,2]
[5521,1714327864178,-545.02,0.00011232,2]
[5522,1714327864187,-1231.29,0.00011232,2]
[5523,1714327864196,-500.0,0.00011232,2]
[5525,1714327864215,-1111.8,0.00011232,2]
[5527,1714327864234,-554.2,0.00011232,2]
[5529,1714327864254,-926.22,0.00011232,2]
[5531,1714327864307,-500.0,0.00011232,2]
[5532,1714327864317,-1541.22,0.00011232,2]
[5533,1714327864325,-500.0,0.00011232,2]
[5534,1714327864336,-500.0,0.00011232,2]
[5535,1714327864344,-500.0,0.00011232,2]
[5537,1714327864359,-1220.25,0.00011232,2]
[5539,1714327864375,-500.0,0.00011232,2]
[5541,1714327864389,-500.0,0.00011232,2]
[5543,1714327864405,-780.64,0.00011232,2]
[5545,1714327864430,-500.0,0.00011232,2]
[5547,1714327864450,-500.0,0.00011232,2]
[5548,1714327864459,-500.0,0.00011232,2]
[5549,1714327864470,-1073.37,0.00011232,2]
[5550,1714327864479,-500.0,0.00011232,2]
[5551,1714327864488,-2809.17,0.00011232,2]
[5552,1714327864498,-602.89,0.00011232,2]
[5553,1714327864508,-500.0,0.00011232,2]
[5554,1714327864517,-500.0,0.00011232,2]
[5555,1714327864527,-500.0,0.00011232,2]
[5556,1714327864536,-500.0,0.00011232,2]
[5557,1714327864545,-500.0,0.00011232,2]
[5558,1714327864555,-500.0,0.00011232,2]
[5559,1714327864564,-500.0,0.00011232,2]
[5560,1714327864574,-613.11,0.00011232,2]
[5561,1714327864583,-500.0,0.00011232,2]
[5562,1714327864591,-502.66469478,0.00011232,2]
[5563,1714327864601,-500.0,0.00011232,2]
[5564,1714327864610,-344.4,0.00011232,2]
[5565,1714327864620,-500.0,0.00011232,2]
[5566,1714327864629,-500.0,0.00011232,2]
[5567,1714327864639,-500.0,0.00011232,2]
[5568,1714327864648,-1594.35,0.00011232,2]
[5569,1714327864658,-500.0,0.00011232,2]
[5570,1714327864667,-797.41,0.00011232,2]
[5571,1714327864677,-500.0,0.00011232,2]
[5572,1714327864686,-624.48,0.00011232,2]
[5573,1714327864695,-500.0,0.00011232,2]
[5574,1714327864705,-500.0,0.00011232,2]
[5575,1714327864715,-500.0,0.00011232,2]
[5576,1714327864724,-500.0,0.00011232,2]
[5577,1714327864733,-933.77,0.00011232,2]
[5578,1714327864742,-500.0,0.00011232,2]
[5579,1714327864752,-500.0,0.00011232,2]
[5580,1714327864761,-500.0,0.00011232,2]
[5581,1714327864770,-677.85,0.00011232,2]
[5582,1714327864780,-500.0,0.00011232,2]
[5583,1714327864789,-500.0,0.00011232,2]
[5584,1714327864799,-500.0,0.00011232,2]
[5585,1714327864808,-599.68,0.00011232,2]
[5586,1714327864818,-2313.19,0.00011232,2]
[5587,1714327864827,-1362.9,0.00011232,2]
[5588,1714327864836,-1006.23,0.00011232,2]
[5589,1714327864846,-1132.55,0.00011232,2]
[5591,1714327864866,-500.0,0.00011232,2]
[5593,1714327864885,-945.42,0.00011232,2]
[5595,1714327864904,-500.0,0.00011232,2]
[5596,1714327864915,-500.0,0.00011232,2]
[5597,1714327864924,-558.54400592,0.00011232,2]
[5599,1714327864944,-1229.87,0.00011232,2]
[5601,1714327864964,-500.0,0.00011232,2]
[5603,1714327864983,-500.0,0.00011232,2]
[5605,1714327865003,-500.0,0.00011232,2]
[5606,1714327865013,-500.0,0.00011232,2]
[5607,1714327865022,-713.69,0.00011232,2]
[5609,1714327865043,-1670.88,0.00011232,2]
[5611,1714327865136,-500.0,0.00011232,2]
[5613,1714327865156,-742.48,0.00011232,2]
[5615,1714327865175,-687.59,0.00011232,2]
[5617,1714327865195,-646.2,0.00011232,2]
[5619,1714327865214,-507.64,0.00011232,2]
[5620,1714327865224,-1142.66,0.00011232,2]
[5621,1714327865234,-500.0,0.00011232,2]
[5622,1714327865244,-515.83,0.00011232,2]
[5623,1714327865253,-500.0,0.00011232,2]
[5625,1714327865275,-500.0,0.00011232,2]
[5627,1714327865294,-1406.26,0.00011232,2]
[5629,1714327865312,-500.0,0.00011232,2]
[5631,1714327865336,-597.93,0.00011232,2]
[5633,1714327865355,-500.0,0.00011232,2]
[5635,1714327865376,-535.6,0.00011232,2]
[5637,1714327865395,-500.0,0.00011232,2]
[5639,1714327865417,-500.0,0.00011232,2]
[5641,1714327865437,-500.0,0.00011232,2]
[5642,1714327865447,-517.5,0.00011232,2]
[5643,1714327865456,-500.0,0.00011232,2]
[5645,1714327865475,-595.42,0.00011232,2]
[5647,1714327865494,-500.0,0.00011232,2]
[5649,1714327865513,-548.3,0.00011232,2]
[5651,1714327865534,-500.0,0.00011232,2]
[5653,1714327865552,-542.11,0.00011232,2]
[5655,1714327865571,-502.14480474,0.00011232,2]
[5657,1714327865590,-688.85,0.00011232,2]
[5659,1714327865609,-447.02572269,0.00011232,2]
[5661,1714327865627,-500.0,0.00011232,2]
[5663,1714327865647,-2215.33,0.00011232,2]
[5664,1714327865656,-500.0,0.00011232,2]
[5665,1714327865665,-500.0,0.00011232,2]
[5666,1714327865674,-500.0,0.00011232,2]
[5667,1714327865683,-500.0,0.00011232,2]
[5668,1714327865692,-500.0,0.00011232,2]
[5669,1714327865702,-349.02316903,0.00011232,2]
[5670,1714327865712,-500.0,0.00011232,2]
[5671,1714327865721,-553.6179564,0.00011232,2]
[5672,1714327865731,-500.0,0.00011232,2]
[5673,1714327865740,-561.44,0.00011232,2]
[5674,1714327865749,-500.0,0.00011232,2]
[5675,1714327865759,-517.49,0.00011232,2]
[5676,1714327865768,-1247.47,0.00011232,2]
[5677,1714327865780,-500.0,0.00011232,2]
[5678,1714327865789,-500.0,0.00011232,2]
[5679,1714327865798,-500.0,0.00011232,2]
[5680,1714327865807,-996.14,0.00011232,2]
[5681,1714327865816,-1997.75,0.00011232,2]
[5682,1714327865825,-500.0,0.00011232,2]
[5683,1714327865835,-500.0,0.00011232,2]
[5684,1714327865844,-500.0,0.00011232,2]
[5685,1714327865853,-1392.83,0.00011232,2]
[5687,1714327865872,-500.0,0.00011232,2]
[5689,1714327865891,-500.0,0.00011232,2]
[5691,1714327865910,-500.0,0.00011232,2]
[5693,1714327865928,-503.49605705,0.00011232,2]